Cogmind - Beta 14 @@@ ROGUE MODE // 2024.08.25 @ 04:52:02 Player: ducanus Result: Destroyed by S-27 Virus with Autogun Performance ------------- Evolutions (6) 3000 Regions Visited (15) 3000 Robots Destroyed (128) 640 Value Destroyed (4966) 4966 Prototype IDs (17) 340 Alien Tech Used (0) 0 Bonus (1626) 1626 TOTAL SCORE: 13572 Bonus ------- High Alert Combat Kills 545 Follower Combat Kills 181 Met Data Miner 300 Met Imprinter 300 Was Imprinted 300 Cogmind --------- Core Integrity 0/1150 Matter 243/300 Energy 90/100 System Corruption 10% Temperature Cool (0) Movement Core (50) Location -4/Factory Parts ------- > --- POWER (1) -------- (None) > --- PROPULSION (5) --- (None) > --- UTILITY (10) ----- System Shield > --- WEAPON (3) ------- (None) > --- INVENTORY (5) ---- High-capacity Storage Unit Improved Datajack Peak State ------------ > --- POWER ------------ Light Angular Momentum Engine > --- PROPULSION ------- Carbon-fiber Leg > --- UTILITY ---------- Advanced Heat Sink Advanced Heat Sink Advanced Heat Sink Advanced Heat Sink Improved Terrain Scan Processor Improved Melee Analysis Suite Armor Integrity Analyzer Matter Filter Improved Medium Armor Plating Improved Thermal Shield > --- WEAPON ----------- Phase Gun Railgun Makeshift Sword > --- INVENTORY -------- High-capacity Storage Unit Plasma Rifle Improved Datajack Makeshift Spear Makeshift Spear [Rating: 72] Favorites ----------- Power Ion Engine Engine Ion Engine Power Core Reinforced Fission Core Propulsion Carbon-fiber Leg Treads Medium Treads Leg Carbon-fiber Leg Wheel Compact Wheel Hover Unit Hover Unit Flight Unit VTOL Module Utility Small Storage Unit Device Advanced Heat Sink Storage Small Storage Unit Processor Signal Interpreter Hackware Makeshift Hacking Suite Protection Improved Medium Armor Plating Weapon Assault Rifle Energy Gun High-powered Shock Rifle Energy Cannon Particle Cannon Ballistic Gun Assault Rifle Ballistic Cannon Battle Cannon Launcher Heavy Rocket Launcher Special Weapon Mining Laser Impact Weapon Power Maul Slashing Weapon Makeshift Sword Piercing Weapon Makeshift Spear Special Melee Weapon Improved Datajack Build | -11 -10 -10 -9 -9 -7 -6 -6 -6 -6 -6 -5 -5 -5 -5 -4 ------- Run | Yrd Mat Min Mat Min Zio Pro Fac Low Low Dat Pro Fac Upp Upp Fac Slots Evolved 12 | . . . 2 . . . 6 . . . . 2 . . 2 Power . | . . . . . . . . . . . . . . . . Propulsion 3 | . . . . . . . 2 . . . . 1 . . . Utility 8 | . . . 2 . . . 4 . . . . 1 . . 1 Weapon 1 | . . . . . . . . . . . . . . . 1 Parts Attached 228 | 7 17 10 9 1 9 9 5 32 6 . 21 34 40 5 23 Power 14 | 1 2 2 . . . 1 . 1 . . 2 2 1 1 1 Engine 10 | 1 2 2 . . . 1 . 1 . . 1 . 1 1 . Core 4 | . . . . . . . . . . . 1 2 . . 1 Reactor . | . . . . . . . . . . . . . . . . Propulsion 52 | 2 2 2 2 . . 2 2 7 1 . 4 8 15 1 4 Treads 10 | . 1 . . . . . . 1 . . . 2 6 . . Leg 26 | 2 . 2 2 . . 2 2 4 1 . . 5 5 1 . Wheel 2 | . 1 . . . . . . . . . . 1 . . . Hover 7 | . . . . . . . . 2 . . 2 . . . 3 Flight 7 | . . . . . . . . . . . 2 . 4 . 1 Utility 79 | 2 6 4 3 1 4 . 2 12 4 . 7 13 11 1 9 Device 48 | 1 5 4 2 1 3 . 2 8 2 . 4 8 2 . 6 Storage 3 | 1 . . . . . . . 1 . . . . . . 1 Processor 13 | . 1 . 1 . . . . . 1 . 2 1 5 1 1 Hackware 5 | . . . . . 1 . . 1 . . 1 1 . . 1 Protection 10 | . . . . . . . . 2 1 . . 3 4 . . Artifact . | . . . . . . . . . . . . . . . . Weapon 83 | 2 7 2 4 . 5 6 1 12 1 . 8 11 13 2 9 Energy Gun 25 | . . 1 . . . . 1 5 . . 2 8 3 . 5 Energy Cannon 7 | . . . . . 1 2 . 2 . . . 2 . . . Ballistic Gun 16 | 2 3 1 1 . . . . 1 . . 1 . 5 . 2 Ballistic Cannon 4 | . . . . . . . . . 1 . 1 1 1 . . Launcher 6 | . . . 1 . 2 1 . 2 . . . . . . . Special Weapon 6 | . 4 . . . . 2 . . . . . . . . . Impact Weapon 6 | . . . 2 . 2 . . 1 . . 1 . . . . Slashing Weapon 4 | . . . . . . . . . . . . . 3 1 . Piercing Weapon 4 | . . . . . . . . . . . 1 . . 1 2 Special Melee Weapon 5 | . . . . . . 1 . 1 . . 2 . 1 . . Unidentified Prototypes 4 | . . . . . 4 . . . . . . . . . . Corrupted Parts 2 | . . . . . . . . . . . . . 2 . . System Corruption 4 | . . . . . . . . . . . . . 4 . . Parts Lost 145 | . 4 2 1 . . 4 . 27 3 . 21 20 32 5 26 Power 9 | . 1 1 . . . . . 2 . . . 2 1 . 2 Propulsion 44 | . 1 . . . . 2 . 7 1 . 7 5 11 3 7 Utility 49 | . 1 1 1 . . . . 9 2 . 8 5 11 1 10 Weapon 43 | . 1 . . . . 2 . 9 . . 6 8 9 1 7 Highest Loss Streak 13 | . 4 1 1 . . 1 . 12 1 . 8 8 10 5 13 To Critical Strikes 1 | . . 1 . . . . . . . . . . . . . Average Slot Usage (%) 75 | . 99 99 97 100 99 99 75 37 80 80 39 51 50 60 62 Engine 6 | . 14 13 11 11 11 11 6 1 . . . . . 3 3 Treads 3 | . 1 10 . . . . . 2 . . . 2 11 13 2 Leg 14 | . 24 5 22 22 22 22 18 7 20 20 3 5 3 . 3 Wheel 1 | . 1 11 . . . . . . . . . 3 . . . Device 12 | . 13 13 21 22 13 11 16 8 29 26 10 10 8 11 19 Storage 6 | . 14 14 11 11 11 11 6 1 . . . . . . . Processor 6 | . . . 9 11 11 11 6 1 4 6 10 9 8 11 15 Hackware 3 | . . . . . 8 11 6 2 6 6 2 1 . . . Protection 1 | . . . . . . . . . 4 6 1 1 5 6 2 Energy Gun 1 | . . 3 1 . . . 3 2 3 . 1 5 . . 2 Energy Cannon 2 | . . . . . 8 4 . 1 . . . 2 . . . Ballistic Gun 5 | . 15 24 11 11 1 . . . . . . . 4 . 1 Special Weapon 2 | . 11 . . . . 3 . . . . . . . . . Impact Weapon 4 | . . . 9 11 10 11 6 3 6 6 1 . . . . Peak Build Rating 72 | 8 9 11 21 19 30 34 40 50 59 50 50 61 52 52 72 Average Rating 25 | 5 8 8 19 19 26 31 37 20 52 50 24 41 34 44 54 On Entrance 29 | . 8 9 11 19 19 30 34 40 50 50 50 9 45 52 50 Naked Turns 80 | . . . . . . . . 58 . . . . . . 22 Heaviest Build 56 | 12 12 16 19 19 39 24 23 56 25 19 27 42 24 22 39 Greatest Support 130 | 20 20 20 30 30 30 30 61 67 67 67 67 54 130 130 56 Greatest Overweight (x) 18 | . . . . . 1 . . 18 . . 8 11 3 1 3 Average Overweight (x) . | . . . . . . . . . . . . . . . . Largest Inventory Capacity 20 | 8 8 8 8 8 8 8 8 20 5 5 5 5 5 5 20 Average Capacity 6 | 7 8 8 8 8 8 8 8 6 5 5 5 5 5 5 5 Most Carried 8 | 8 8 8 8 8 8 8 8 8 5 5 5 5 5 5 5 Average Carried 5 | 4 7 4 7 7 7 7 7 4 4 5 4 3 3 4 4 Final Capacity 8 | 8 8 8 8 8 8 8 8 5 5 5 5 5 5 5 5 Final Carried 8 | 8 4 8 7 8 8 8 8 5 5 5 4 2 5 4 2 Class Distribution -------------------- 61% | Mutant 16% | Scavenger-Mutant 15% | Derelict-Mutant Dominant Class ---------------- Mutant | -10/Materials Mutant | -10/Mines Mutant | -9/Materials Mutant | -9/Mines Mutant | -7/Zion Derelict-Mutant | -6/Proximity Caves Assassin | -6/Factory Mutant | -6/Lower Caves Derelict-Mutant | -6/Lower Caves Derelict-Mutant | -6/Data Miner Mutant | -5/Proximity Caves Mutant | -5/Factory Scavenger-Mutant | -5/Upper Caves Scavenger-Mutant | -5/Upper Caves Scavenger-Gladiator | -4/Factory Resources | -11 -10 -10 -9 -9 -7 -6 -6 -6 -6 -6 -5 -5 -5 -5 -4 ----------- Run | Yrd Mat Min Mat Min Zio Pro Fac Low Low Dat Pro Fac Upp Upp Fac Matter Collected 1470 | 334 251 457 155 10 39 10 . 24 . . 19 1 19 . 151 Remotely . | . . . . . . . . . . . . . . . . Salvage Created 5317 | 231 251 163 216 . . 187 . 1254 38 . 325 1229 604 289 530 Parts 263 | 21 11 25 8 . . 7 . 46 . . 18 57 31 9 30 Haulers Intercepted 1 | . 1 . . . . . . . . . . . . . . Recyclers Shooed 4 | 1 . . . . . . . . . . . 1 . . 2 Parts Field Recycled . | . . . . . . . . . . . . . . . . Retrieved Matter . | . . . . . . . . . . . . . . . . Parts Self-Destructed 72 | . . . . . 2 3 . 21 . . 15 . 22 9 . Prevented 32 | . . . . . . 8 . 15 2 . 6 . 1 . . Kills | -11 -10 -10 -9 -9 -7 -6 -6 -6 -6 -6 -5 -5 -5 -5 -4 ------- Run | Yrd Mat Min Mat Min Zio Pro Fac Low Low Dat Pro Fac Upp Upp Fac Combat Hostiles Destroyed 103 | . 6 6 4 . . 4 . 29 1 . 9 18 13 3 10 Melee 26 | . . . 3 . . . . 2 . . 2 . 8 3 8 Guns 31 | . 6 6 . . . . . 2 . . . 11 4 . 2 Cannons 12 | . . . . . . 1 . 1 . . 4 5 1 . . AOE 20 | . . . . . . 1 . 18 . . . 1 . . . Classes Destroyed 17 | 3 4 . 1 . . 3 . 2 . . 1 2 1 . . Worker 8 | 2 . 3 3 . . . . . . . . . . . . Builder 5 | . 1 . 2 . . . . . . . . 2 . . . Tunneler 6 | 5 . 1 . . . . . . . . . . . . . Hauler 1 | . 1 . . . . . . . . . . . . . . Recycler 1 | 1 . . . . . . . . . . . . . . . Minesweeper 3 | . . . . . . 1 . 2 . . . . . . . Drone 1 | . . . . . . . . . . . 1 . . . . Watcher 1 | . . . . . . . . . . . . 1 . . . Swarmer 26 | . 3 6 . . . . . 4 . . 4 . 6 . 3 Grunt 47 | . 3 . 3 . . 2 . 13 . . 3 14 3 3 3 Brawler 2 | . . . 1 . . . . . . . 1 . . . . Duelist 2 | . . . . . . . . . . . . . 2 . . Sentry 6 | . . . . . . 1 . 3 . . . 2 . . . Hunter 5 | . . . . . . . . 2 1 . . . 2 . . Programmer 8 | . . . . . . . . 3 . . . 1 . . 4 Heavy 1 | . . . . . . . . . . . . 1 . . . Behemoth 1 | . . . . . . 1 . . . . . . . . . Packrat 1 | . . . . . . . . . . . . . 1 . . Thug 1 | . . . . . . . . 1 . . . . . . . Savage 3 | . . . . . . . . 3 . . . . . . . Best Kill Streak 8 | 5 3 3 3 . . 2 . 8 1 . 3 6 5 2 3 Combat Bots Only 8 | . 3 3 2 . . 1 . 8 1 . 3 4 5 2 3 Max Kills in Single Turn 2 | 1 1 1 1 . . 1 . 2 1 . 1 2 1 1 1 Gunslinging . | . . . . . . . . . . . . . . . . Exploded 2 | . . . . . . 1 . 2 . . . 1 . . . Melee 1 | . . . 1 . . . . 1 . . 1 . 1 1 1 Uniques/NPCs Destroyed . | . . . . . . . . . . . . . . . . Combat | -11 -10 -10 -9 -9 -7 -6 -6 -6 -6 -6 -5 -5 -5 -5 -4 -------- Run | Yrd Mat Min Mat Min Zio Pro Fac Low Low Dat Pro Fac Upp Upp Fac Hostile Shots Fired 1709 | . 44 32 17 . . 126 . 400 68 . 292 218 281 38 193 Missed 553 | . 15 7 6 . . 55 . 159 17 . 104 64 67 9 50 Damage Taken 21585 | . 647 209 166 . . 848 . 4360 577 . 3377 3623 4620 545 2613 Core 8734 | . 118 30 31 . . 121 . 2131 92 . 2368 839 2035 38 931 Absorbed by Shields 247 | . . . . . . . . 120 90 . 37 . . . . Redirected to Shielding 61 | . . . . . . . . . 61 . . . . . . Ignored by Resistances 469 | . . . . . . . . . 144 . 215 . . . 110 Regen/Repaired (Parts) 243 | . . . . . 243 . . . . . . . . . . Core Remaining (%) 71 | 100 . 40 . . . 85 . . . . 40 . . 92 . Volleys Fired 430 | 16 57 32 1 . 6 16 . 95 10 . 48 86 39 . 24 Largest 2 | 2 2 2 1 . 1 1 . 2 1 . 1 2 2 . 2 Hottest 135 | 40 120 85 23 . 68 90 . 98 60 . 60 135 81 . 123 Shots Fired 576 | 32 78 67 1 . 6 16 . 97 10 . 50 130 55 . 34 Gun 385 | 32 58 67 1 . . . . 49 8 . 19 67 50 . 34 Cannon 124 | . . . . . 6 11 . 6 2 . 31 63 5 . . Launcher 45 | . . . . . . 3 . 42 . . . . . . . Special 22 | . 20 . . . . 2 . . . . . . . . . Kinetic 269 | 32 58 58 1 . . . . 1 2 . 32 21 48 . 16 Thermal 161 | . 20 9 . . 6 13 . 22 . . . 67 7 . 17 Explosive 45 | . . . . . . 3 . 42 . . . . . . . Electromagnetic 101 | . . . . . . . . 32 8 . 18 42 . . 1 Robot Hit Streak 20 | 5 18 5 . . . 12 . 14 1 . 4 20 13 . 7 Robot Miss Streak 12 | 3 3 4 . . . 2 . 5 2 . 10 12 3 . 3 Penetration Max 1 | . . . . . . . . . . . . 1 . . . Secondary Targets 3 | . . 2 . . . . . . . . . 1 . . . Max Gunslinging Chain 1 | . . 1 . . . . . . . . . 1 . . . Shots Hit Robots 431 | 17 42 19 15 . . 22 . 61 8 . 35 102 52 12 46 Core Hits 284 | 12 13 11 5 . . 13 . 93 . . 20 45 47 7 18 Critical Kills 5 | . . . 2 . . . . 1 . . . 1 . . 1 Critical Parts Destroyed 6 | . . . 1 . . 2 . . 1 . 2 . . . . Critical Strikes 40 | . . . 4 . . 4 . 4 1 . 5 11 4 1 6 Burn 4 | . . . . . . . . 2 . . . 1 1 . . Meltdown 1 | . . . . . . . . . . . . 1 . . . Destroy 1 | . . . . . . . . . . . . . . . 1 Blast 12 | . . . . . . . . . . . 3 8 1 . . Corrupt 2 | . . . . . . . . 1 . . . 1 . . . Smash 12 | . . . 4 . . 4 . 1 1 . 2 . . . . Sever 6 | . . . . . . . . . . . . . 2 1 3 Impale 2 | . . . . . . . . . . . . . . . 2 Melee Attacks 229 | . . . 19 4 30 11 . 16 13 . 33 . 43 20 40 Impact 113 | . . . 19 4 30 9 . 16 13 . 22 . . . . Slashing 75 | . . . . . . . . . . . . . 39 18 18 Piercing 28 | . . . . . . . . . . . 4 . . 2 22 Sneak Attacks 16 | . . . 5 . . 1 . 1 . . 4 . 4 1 . Combat Hostiles 1 | . . . . . . . . . . . . . . 1 . Follow-up Attacks 5 | . . . . . . . . . . . . . . . 5 Damage Inflicted 15659 | 212 488 207 806 . . 1095 . 5306 295 . 1107 2853 1335 519 1436 Guns 3658 | 212 464 207 . . . . . 623 30 . 134 1031 438 . 519 Cannons 2380 | . . . . . . 264 . 78 13 . 222 1690 113 . . Explosions 4396 | . . . . . . 382 . 3780 . . 110 124 . . . Melee 4845 | . . . 806 . . 429 . 721 252 . 568 . 633 519 917 Ramming 336 | . . . . . . . . 104 . . 73 8 151 . . Kinetic 2629 | 212 464 207 . . . . . 16 13 . 239 692 510 . 276 Thermal 2710 | . 24 . . . . 284 . 522 . . 110 1505 41 . 224 Explosive 3903 | . . . . . . 382 . 3521 . . . . . . . Electromagnetic 1236 | . . . . . . . . 422 30 . 117 648 . . 19 Impact 2758 | . . . 806 . . 429 . 721 252 . 550 . . . . Slashing 1548 | . . . . . . . . . . . . . 633 398 517 Piercing 539 | . . . . . . . . . . . 18 . . 121 400 Highest Corruption 14 | . 11 11 4 4 4 . . 13 13 13 14 1 14 14 10 Average Corruption 11 | . 11 11 4 4 4 . . 11 13 13 13 1 12 14 7 Corruption Purged . | . . . . . . . . . . . . . . . . Corruption Blocked . | . . . . . . . . . . . . . . . . Effects 345 | . 14 47 1 4 3 . . 70 37 4 54 1 92 10 8 Message Errors 75 | . 3 7 . . 2 . . 19 7 1 10 . 21 2 3 Matter Fused 71 | . 4 10 1 1 . . . 10 8 1 13 1 19 1 2 Heat Flow Errors 41 | . 3 5 . . . . . 7 6 2 6 . 11 1 . Energy Discharges 52 | . . 7 . 3 1 . . 13 6 . 4 . 15 2 1 Parts Rejected 4 | . . . . . . . . 1 . . . . 2 1 . Parts Fused 4 | . . 1 . . . . . 1 . . . . 2 . . Data Loss (minor) 49 | . 2 8 . . . . . 10 7 . 12 . 9 1 . Data Loss (major) 19 | . 1 2 . . . . . 4 2 . 1 . 6 1 2 Misfires 11 | . . 4 . . . . . 1 . . 2 . 4 . . Alerts 7 | . . 2 . . . . . 3 . . 1 . 1 . . Misdirections 10 | . 1 . . . . . . 1 1 . 5 . 1 1 . Weapon Failures 2 | . . 1 . . . . . . . . . . 1 . . Overload Shots . | . . . . . . . . . . . . . . . . Overflow Damage 967 | . . . 209 . . 99 . 424 39 . 105 22 3 34 32 Projectiles 22 | . . . . . . . . . . . . 22 . . . Explosions 48 | . . . . . . . . 48 . . . . . . . Melee 897 | . . . 209 . . 99 . 376 39 . 105 . 3 34 32 Knockbacks 24 | . . . 2 . . 1 . 3 3 . 5 9 1 . . Impact 10 | . . . 2 . . 1 . 3 2 . 2 . . . . Kinetic 14 | . . . . . . . . . 1 . 3 9 1 . . Secondary . | . . . . . . . . . . . . . . . . Self-Inflicted Damage 366 | . . . . . . 32 . 192 . . 32 49 61 . . Shots 10 | . . . . . . 2 . 7 . . . 1 . . . Rammed 103 | . . . . . . . . 33 . . 23 3 44 . . Targets Rammed 116 | . . . . . . . . 33 . . 23 3 56 . 1 Kicked 12 | . . . . . . . . . . . . . 11 . 1 Crushed 1 | . . . . . . . . . . . . . 1 . . Highest Temperature 213 | . 188 199 . . 44 177 . 83 . . 10 63 213 102 6 Average Temperature 28 | . 30 76 . . 20 50 . 9 . . 7 13 22 102 6 Received Heat Transfer 4429 | . 138 . 42 . . 210 . 1141 60 . 690 1083 585 261 219 Siege Activations . | . . . . . . . . . . . . . . . . Robots Corrupted 12 | . . . 2 . . 2 . 4 1 . 3 . . . . Combat Hostiles 10 | . . . 1 . . 2 . 3 1 . 3 . . . . Parts Fried 13 | . . . 9 . . . . 2 2 . . . . . . Impact Corruptions 32 | . . . 6 . . 4 . 15 2 . 4 . 1 . . Robots Melted 3 | . . . . . . . . 2 . . . 1 . . . Combat Hostiles 3 | . . . . . . . . 2 . . . 1 . . . Parts Melted 6 | . . . . . . . . 2 . . . 4 . . . Heat Transferred 4541 | . 50 . . . . 571 . 1050 . . 100 2287 148 . 335 Parts Sabotaged 3 | . . . . . . . . . . . 3 . . . . Parts Stolen . | . . . . . . . . . . . . . . . . Parts Stripped . | . . . . . . . . . . . . . . . . Power Chain Reactions 4 | . . . . . . . . 2 . . 1 1 . . . Alert | -11 -10 -10 -9 -9 -7 -6 -6 -6 -6 -6 -5 -5 -5 -5 -4 ------- Run | Yrd Mat Min Mat Min Zio Pro Fac Low Low Dat Pro Fac Upp Upp Fac Peak Influence 1162 | 40 105 189 135 46 . . . . . . . 1162 . . 126 Initial 1082 | . 26 39 27 . . . . . . . . 1082 . . 15 Average 138 | 18 17 47 69 43 . . . . . . . 1041 . . 48 Maximum Alert Level 4 | . . . . . . . . . . . . 4 . . . Low Security (%) 89 | 100 100 100 100 100 . . 100 . . . . . . . 100 Level 1 . | . . . . . . . . . . . . . . . . Level 2 . | . . . . . . . . . . . . . . . . Level 3 6 | . . . . . . . . . . . . 61 . . . Level 4 4 | . . . . . . . . . . . . 38 . . . Level 5 . | . . . . . . . . . . . . . . . . High Security . | . . . . . . . . . . . . . . . . Max Security . | . . . . . . . . . . . . . . . . Squads Dispatched 9 | . 2 . . . . . 1 . . . 1 4 . . 1 Investigation 4 | . 1 . . . . . 1 . . . . 2 . . . Extermination 2 | . . . . . . . . . . . . 1 . . 1 Reinforcement 1 | . 1 . . . . . . . . . . . . . . Assault 1 | . . . . . . . . . . . 1 . . . . Garrison 1 | . . . . . . . . . . . . 1 . . . Intercept . | . . . . . . . . . . . . . . . . Searches Triggered 2 | . . . . . . . . . . . . 2 . . . Construction Impeded . | . . . . . . . . . . . . . . . . Haulers Reinforced . | . . . . . . . . . . . . . . . . Active Scanning Responses . | . . . . . . . . . . . . . . . . Cargo Convoy Interrupts . | . . . . . . . . . . . . . . . . Stealth | -11 -10 -10 -9 -9 -7 -6 -6 -6 -6 -6 -5 -5 -5 -5 -4 --------- Run | Yrd Mat Min Mat Min Zio Pro Fac Low Low Dat Pro Fac Upp Upp Fac Distress Signals 1 | . . . 1 . . . . . . . . . . . . Communications Jammed 61 | . . . . . . . . . . . . 61 . . . Distress Signals 36 | . . . . . . . . . . . . 36 . . . Times Spotted 203 | . 10 7 9 . . 8 1 44 3 . 51 28 19 3 20 Peak Tracking Total 14 | . 3 3 3 . . 3 1 8 1 . 14 8 7 3 9 Tactical Retreats 32 | . 1 1 . . . 2 . 6 2 . 16 . 2 . 2 Traps | -11 -10 -10 -9 -9 -7 -6 -6 -6 -6 -6 -5 -5 -5 -5 -4 ------- Run | Yrd Mat Min Mat Min Zio Pro Fac Low Low Dat Pro Fac Upp Upp Fac Traps Triggered 4 | . 1 . . . . . . . . . . 3 . . . Indirectly . | . . . . . . . . . . . . . . . . Trap Hack Attempts . | . . . . . . . . . . . . . . . . Triggered . | . . . . . . . . . . . . . . . . Disarmed . | . . . . . . . . . . . . . . . . Reprogrammed . | . . . . . . . . . . . . . . . . Reused 4 | . . . . . . . . 3 1 . . . . . . Traps Extracted . | . . . . . . . . . . . . . . . . Installed 4 | . . . . . . . . 3 1 . . . . . . Triggered 5 | . . . . . . . . 3 2 . . . . . . Most Traps Carried 3 | . . . . . . 3 3 3 1 . . . . . . Machines | -11 -10 -10 -9 -9 -7 -6 -6 -6 -6 -6 -5 -5 -5 -5 -4 ---------- Run | Yrd Mat Min Mat Min Zio Pro Fac Low Low Dat Pro Fac Upp Upp Fac Machines Disabled 13 | . . 6 . 3 . . . 1 . . . . 3 . . Max in Single Turn 1 | . . 1 . 1 . . . 1 . . . . 1 . . Machines Repaired . | . . . . . . . . . . . . . . . . Machines Dismantled . | . . . . . . . . . . . . . . . . Machines Sabotaged . | . . . . . . . . . . . . . . . . Overloaded Fab Kills . | . . . . . . . . . . . . . . . . Hacking | -11 -10 -10 -9 -9 -7 -6 -6 -6 -6 -6 -5 -5 -5 -5 -4 --------- Run | Yrd Mat Min Mat Min Zio Pro Fac Low Low Dat Pro Fac Upp Upp Fac Machines Accessed 16 | . 4 . 2 . . . 1 1 1 4 . 2 1 . . Terminals 6 | . 4 . 1 . . . . 1 . . . . . . . Fabricators 1 | . . . . . . . . . . . . 1 . . . Repair Stations . | . . . . . . . . . . . . . . . . Recycling Units 3 | . . . 1 . . . 1 . . . . 1 . . . Scanalyzers . | . . . . . . . . . . . . . . . . Garrison Access . | . . . . . . . . . . . . . . . . Total Hacks 59 | . 12 . 4 . . . 2 5 1 28 . 6 1 . . Successful 45 | . 4 . 3 . . . 1 5 1 28 . 2 1 . . Failed 14 | . 8 . 1 . . . 1 . . . . 4 . . . Catastrophic 4 | . 2 . . . . . . . . . . 2 . . . Database Lockouts . | . . . . . . . . . . . . . . . . Manual 13 | . 4 . . . 2 . 2 . . 2 . . . . 3 Terminals 19 | . 12 . 2 . . . . 5 . . . . . . . Fabricators 4 | . . . . . . . . . . . . 4 . . . Repair Stations . | . . . . . . . . . . . . . . . . Recycling Units 6 | . . . 2 . . . 2 . . . . 2 . . . Scanalyzers . | . . . . . . . . . . . . . . . . Garrison Access . | . . . . . . . . . . . . . . . . Terminal Hacks 40 | . 4 . 1 . . . . 5 1 28 . . 1 . . Record 16 | . . . . . . . . 5 . 11 . . . . . Part Schematic 8 | . . . . . . . . . . 8 . . . . . Robot Schematic 6 | . . . . . . . . . . 6 . . . . . Robot Analysis 1 | . 1 . . . . . . . . . . . . . . Prototype ID Bank 4 | . 1 . . . . . . . . 3 . . . . . Open Door 2 | . . . . . . . . . 1 . . . 1 . . Alert Level 2 | . 1 . 1 . . . . . . . . . . . . Hauler Manifests 1 | . 1 . . . . . . . . . . . . . . Fabricator Hacks 2 | . . . . . . . . . . . . 2 . . . Load Schematic 1 | . . . . . . . . . . . . 1 . . . Build 1 | . . . . . . . . . . . . 1 . . . Repair Station Hacks . | . . . . . . . . . . . . . . . . Recycling Unit Hacks 3 | . . . 2 . . . 1 . . . . . . . . Report Inventory 2 | . . . 1 . . . 1 . . . . . . . . Retrieve Components 1 | . . . 1 . . . . . . . . . . . . Scanalyzer . | . . . . . . . . . . . . . . . . Garrison Access Hacks . | . . . . . . . . . . . . . . . . Unauthorized Hacks . | . . . . . . . . . . . . . . . . Terminals . | . . . . . . . . . . . . . . . . Fabricators . | . . . . . . . . . . . . . . . . Repair Stations . | . . . . . . . . . . . . . . . . Recycling Units . | . . . . . . . . . . . . . . . . Scanalyzers . | . . . . . . . . . . . . . . . . Garrison Access . | . . . . . . . . . . . . . . . . Data Cores Recovered . | . . . . . . . . . . . . . . . . Used . | . . . . . . . . . . . . . . . . Hacking Detections 9 | . 4 . 1 . . . 1 1 . . . 2 . . . Full Trace Events 4 | . 2 . . . . . . . . . . 2 . . . Feedback Events . | . . . . . . . . . . . . . . . . Feedback Blocked . | . . . . . . . . . . . . . . . . Robot Schematics Acquired 6 | . . . . . . . . . . 6 . . . . . Robots Built . | . . . . . . . . . . . . . . . . Authchips . | . . . . . . . . . . . . . . . . Time 169 | . . . . . . . . . . . . 169 . . . Total Robot Build Rating . | . . . . . . . . . . . . . . . . Part Schematics Acquired 8 | . . . . . . . . . . 8 . . . . . Parts Built . | . . . . . . . . . . . . . . . . Authchips . | . . . . . . . . . . . . . . . . Time . | . . . . . . . . . . . . . . . . Total Part Build Rating . | . . . . . . . . . . . . . . . . Parts Repaired . | . . . . . . . . . . . . . . . . Time . | . . . . . . . . . . . . . . . . Parts Recycled . | . . . . . . . . . . . . . . . . Recycled Matter . | . . . . . . . . . . . . . . . . Retrieved Matter . | . . . . . . . . . . . . . . . . Retrieved Components 3 | . . . 3 . . . . . . . . . . . . Parts Scanalyzed . | . . . . . . . . . . . . . . . . Part Schematics Acquired . | . . . . . . . . . . . . . . . . Parts Damaged . | . . . . . . . . . . . . . . . . Bothacking | -11 -10 -10 -9 -9 -7 -6 -6 -6 -6 -6 -5 -5 -5 -5 -4 ------------ Run | Yrd Mat Min Mat Min Zio Pro Fac Low Low Dat Pro Fac Upp Upp Fac Used RIF Installer . | . . . . . . . . . . . . . . . . Robots Hacked 2 | . . . . . . 1 . . . . . . 1 . . Non-combat . | . . . . . . . . . . . . . . . . Combat 2 | . . . . . . 1 . . . . . . 1 . . Robot Hacks Applied 2 | . . . . . . 1 . . . . . . 1 . . parse_system 2 | . . . . . . 1 . . . . . . 1 . . Relay Couplers Released . | . . . . . . . . . . . . . . . . Fabnet Peak Effective % . | . . . . . . . . . . . . . . . . Robots Rewired 4 | . . . . . . . . . . . 2 . 2 . . Allies Hacked . | . . . . . . . . . . . . . . . . Hacks Repelled . | . . . . . . . . . . . . . . . . Allies | -11 -10 -10 -9 -9 -7 -6 -6 -6 -6 -6 -5 -5 -5 -5 -4 -------- Run | Yrd Mat Min Mat Min Zio Pro Fac Low Low Dat Pro Fac Upp Upp Fac Total Allies 8 | . . . . . 4 . . . . . 2 . 2 . . Largest Group 4 | . . . . . 4 4 . . . . 2 . 1 . . Highest-Rated Group 152 | . . . . . 152 152 . . . . 59 . 49 . . Highest-Rated Ally 49 | . . . . . 40 40 . . . . 30 . 49 . . Total Orders 6 | . . . . . . . 2 . 2 . 2 . . . . FOLLOW 1 | . . . . . . . 1 . . . . . . . . EXPLORE 5 | . . . . . . . 1 . 2 . 2 . . . . Ally Attacks 34 | . . . . . . 16 . . . . 8 . 10 . . Total Damage 970 | . . . . . . 484 . . . . 165 . 321 . . Kills 5 | . . . . . . 2 . . . . 1 . 2 . . Allies Corrupted . | . . . . . . . . . . . . . . . . Allies Melted . | . . . . . . . . . . . . . . . . Intel | -11 -10 -10 -9 -9 -7 -6 -6 -6 -6 -6 -5 -5 -5 -5 -4 ------- Run | Yrd Mat Min Mat Min Zio Pro Fac Low Low Dat Pro Fac Upp Upp Fac Robot Analysis Total 1 | . 1 . . . . . . . . . . . . . . Derelict Logs Recovered 9 | . . 2 . . 2 2 . 1 . . 1 . 1 . . Drone Launches 5 | . . . . . . . 1 . 2 . 2 . . . . Drone Recoveries 1 | . . . . . . . . . 1 . . . . . . Exploration | -11 -10 -10 -9 -9 -7 -6 -6 -6 -6 -6 -5 -5 -5 -5 -4 ------------- Run | Yrd Mat Min Mat Min Zio Pro Fac Low Low Dat Pro Fac Upp Upp Fac Turns Passed 17472 | 154 2835 1063 419 177 2524 1905 192 2270 793 112 1107 640 2548 211 522 Spaces Moved 10783 | 80 553 705 258 126 1883 1504 128 1518 592 94 959 291 1779 102 211 Core 1598 | 6 . . . . . . . 644 . . 583 16 290 . 59 Treads 1084 | . 10 . . . . . . 113 . . . 38 799 95 29 Legs 6643 | 74 291 139 258 126 1883 1504 128 739 592 94 152 190 371 7 95 Wheels 865 | . 252 566 . . . . . . . . . 47 . . . Hover 230 | . . . . . . . . 22 . . 180 . . . 28 Flight 363 | . . . . . . . . . . . 44 . 319 . . Fastest Speed 26 | 50 100 100 120 120 120 120 110 50 120 120 32 100 26 160 50 Average Speed 118 | 114 111 103 120 120 120 120 115 126 120 120 83 126 125 162 162 Slowest Speed 950 | 120 160 120 120 120 190 120 120 950 120 120 450 600 200 190 260 Overloaded Moves . | . . . . . . . . . . . . . . . . Propulsion Burnouts . | . . . . . . . . . . . . . . . . Robots Hopped . | . . . . . . . . . . . . . . . . Cave-ins Triggered 1 | . 1 . . . . . . . . . . . . . . Exploration Rate (%) 53 | 3 54 101 17 26 91 97 7 98 73 74 90 7 98 17 5 Regions Visited 15 Branch Regions 10 Pre-discovered Areas 7 | . . 3 . . 1 . . 2 . 1 . . . . . Known Exits Taken 6 | . . . 1 1 1 1 1 . . . 1 . . . . Unknown Exits Taken 9 | 1 1 1 . . . . . 1 1 1 . 1 1 1 . Scrap Searched 25 | . . 2 . 1 1 5 . 6 2 . 5 . 3 . . Spaces Dug 121 | . 17 . 3 1 7 . . 84 8 . . . 1 . . Terrain Destroyed 581 | . 18 . 3 1 7 69 . 449 8 . 9 10 3 . 4 Melee 23 | . . . 3 1 7 . . 3 8 . . . 1 . . Projectile 34 | . 18 . . . . 1 . . . . 3 6 2 . 4 AOE 524 | . . . . . . 68 . 446 . . 6 4 . . . Terrain Rammed . | . . . . . . . . . . . . . . . . Walls Destroyed . | . . . . . . . . . . . . . . . . Machines Disabled . | . . . . . . . . . . . . . . . . Actions | -11 -10 -10 -9 -9 -7 -6 -6 -6 -6 -6 -5 -5 -5 -5 -4 --------- Run | Yrd Mat Min Mat Min Zio Pro Fac Low Low Dat Pro Fac Upp Upp Fac Total 14499 | 110 2652 975 333 143 2078 1564 172 1729 644 93 1177 416 1975 126 312 Wait 2616 | . 2016 217 35 12 135 18 38 21 16 . 81 . 12 . 15 Move 10768 | 79 552 704 257 125 1882 1503 127 1517 591 93 958 290 1778 101 211 Hop . | . . . . . . . . . . . . . . . . Pick Up 48 | 8 5 5 5 1 4 4 . 5 2 . . 1 7 . 1 Fast Attach 159 | 7 1 5 . . 8 2 3 25 6 . 16 30 34 4 18 Attach 37 | . 5 1 3 . . 3 2 6 . . 5 3 4 1 4 Detach 13 | . 1 2 . . . . 2 3 . . 4 . . . 1 Swap 32 | . 11 4 6 1 1 4 . 1 . . . 1 2 . 1 Drop 46 | . 4 5 7 . 12 3 . 4 5 . 2 2 . . 2 Fire 430 | 16 57 32 1 . 6 16 . 95 10 . 48 86 39 . 24 Melee 223 | . . . 19 4 30 11 . 16 13 . 33 . 43 20 34 Ram 94 | . . . . . . . . 33 . . 23 . 38 . . Kick 12 | . . . . . . . . . . . . . 11 . 1 Crush 10 | . . . . . . . . . . . . 3 7 . . Escape Stasis . | . . . . . . . . . . . . . . . . Rewire 7 | . . . . . . . . . . . 7 . . . . Trap 4 | . . . . . . . . 3 1 . . . . . . Miscellaneous . | . . . . . . . . . . . . . . . . Route ------- -11/Scrapyard -10/Materials (discovered 2 exits: *Mat / [*Min]) -10/Mines (discovered 2 exits: *Mat x2) -9/Materials -9/Mines (discovered 2 exits: *Mat / *Zio) -7/Zion -6/Proximity Caves -6/Factory (discovered 2 exits: *Low / Ext) -6/Lower Caves -6/Lower Caves (discovered 2 exits: *Fac / *Dat) -6/Data Miner -5/Proximity Caves -5/Factory -5/Upper Caves -5/Upper Caves -4/Factory History --------- Turn | Location | Event 4 | -11/Scrapyard | Discovered new exit (range 14) 155 | -11/Scrapyard | Entered Materials 303 | -10/Materials | Build established: Mutant 2676 | -10/Materials | Crushed by falling debris 2676 | -10/Materials | System corruption reached 10% 2707 | -10/Materials | Lost 4 parts (1p1n1u1w) 2798 | -10/Materials | Discovered new exit (range 16) 2873 | -10/Materials | Discovered new exit (range 13) 2990 | -10/Materials | Entered Mines 3011 | -10/Mines | Met a Derelict bent on vengeance 3188 | -10/Mines | Core integrity fell below 50% 3435 | -10/Mines | Learned location of Storage (-8) 3576 | -10/Mines | Learned location of Zion (-7) 3762 | -10/Mines | Discovered new exit (range 7) 3998 | -10/Mines | Discovered new exit (range 3) 4053 | -10/Mines | Entered Materials 4053 | -9/Materials | Evolved 2 slots: Utility x2 4106 | -9/Materials | Build established: Scavenger-Mutant 4424 | -9/Materials | Build established: Mutant 4448 | -9/Materials | Discovered new exit (range 5) 4456 | -9/Materials | Identified exit to Mines 4472 | -9/Materials | Entered Mines 4479 | -9/Mines | Assembled infested the area 4550 | -9/Mines | Received a Rocket Launcher from a helpful Derelict 4599 | -9/Mines | Discovered new exit (range 12) 4601 | -9/Mines | A Derelict revealed a hidden shortcut to a safe place 4607 | -9/Mines | Identified exit to Zion 4611 | -9/Mines | Identified exit to Materials 4649 | -9/Mines | Entered Zion 4702 | -7/Zion | Received a visual enhancement algorithm 4715 | -7/Zion | Discovered new exit (range 12) 4750 | -7/Zion | System corruption cleaned by Quarantine Array 4847 | -7/Zion | Visited the Megawrench Repair Shop 4847 | -7/Zion | Megawrench repaired 7 parts 4906 | -7/Zion | Found Prototype Launcher 4906 | -7/Zion | Identified Gui. Missile Launcher 4910 | -7/Zion | Found Prototype Launcher 4910 | -7/Zion | Identified Rocket Array 5163 | -7/Zion | Found Prototype Device 5163 | -7/Zion | Identified Phasing AFG 5213 | -7/Zion | Learned 8 Factory zone layouts 5257 | -7/Zion | Learned Factory emergency access door positions 5347 | -7/Zion | Given the Hacking Drone Bay 5350 | -7/Zion | Found Prototype Device 5350 | -7/Zion | Identified Hacking Drone Bay 5611 | -7/Zion | Met Imprinter 5638 | -7/Zion | Imprinted 5640 | -7/Zion | Declared Zion's savior 7149 | -7/Zion | Identified exit to Proximity Caves 7173 | -7/Zion | Entered Proximity Caves 7173 | -6/Proximity Caves | Accompanied by 4 allies 7392 | -6/Proximity Caves | Learned Factory stockpile data 7652 | -6/Proximity Caves | Spotted B-75 Beast 7943 | -6/Proximity Caves | Destroyed B-75 Beast 7972 | -6/Proximity Caves | Build established: Derelict-Mutant 8088 | -6/Proximity Caves | Discovered new exit (range 5) 8095 | -6/Proximity Caves | Identified exit to Factory 8502 | -6/Proximity Caves | Learned Factory trap positions 8578 | -6/Proximity Caves | Attracted the attention of an 0b10 checkpoint 8951 | -6/Proximity Caves | Build established: Mutant 9078 | -6/Proximity Caves | Entered Factory 9078 | -6/Factory | Evolved 6 slots: Propulsion x2, Utility x4 9079 | -6/Factory | Identified exit to Extension 9079 | -6/Factory | Core integrity fell below 50% 9081 | -6/Factory | Loaded intel: 118 trap records 9107 | -6/Factory | Discovered new exit (range 26) 9190 | -6/Factory | Identified exit to Lower Caves 9270 | -6/Factory | Entered Lower Caves 9272 | -6/Lower Caves | Attracted the attention of an 0b10 checkpoint 9463 | -6/Lower Caves | Ambushed by research squad 9518 | -6/Lower Caves | Ambushed by wild Derelicts 9603 | -6/Lower Caves | Build established: Derelict-Assassin 9749 | -6/Lower Caves | Attracted the attention of an 0b10 base 9779 | -6/Lower Caves | Destroyed 8 combat bots 9863 | -6/Lower Caves | Lost 12 parts (2n4u6w) 9878 | -6/Lower Caves | Learned location of 1 exit from Research 9878 | -6/Lower Caves | Learned Extension trap positions 9878 | -6/Lower Caves | Learned Armory garrison access intel 9920 | -6/Lower Caves | System corruption reached 10% 9984 | -6/Lower Caves | Lost 6 parts (2n2u2w) 10037 | -6/Lower Caves | Build established: Mutant 11011 | -6/Lower Caves | Lost 4 parts (1n2u1w) 11253 | -6/Lower Caves | Discovered new exit (range 4) 11540 | -6/Lower Caves | Entered another Lower Caves area 11568 | -6/Lower Caves | Build established: Derelict-Mutant 11593 | -6/Lower Caves | Spotted B-75 Beast 11686 | -6/Lower Caves | Discovered new exit (range 10) 12261 | -6/Lower Caves | Discovered new exit (range 5) 12333 | -6/Lower Caves | Entered Data Miner 12333 | -6/Data Miner | Discovered new exit (range 6) 12356 | -6/Data Miner | Met Data Miner 12396 | -6/Data Miner | Learned location of Section 7 (-2) 12396 | -6/Data Miner | Acquired the access code to Warlord's prototype stash 12417 | -6/Data Miner | Received God Mode back door access code from Data Miner 12445 | -6/Data Miner | Entered Proximity Caves 12599 | -5/Proximity Caves | Spotter reported a threat 12707 | -5/Proximity Caves | Spotted B-75 Beast 12713 | -5/Proximity Caves | Lost 8 parts (3n4u1w) 12755 | -5/Proximity Caves | Spotter reported a threat 12768 | -5/Proximity Caves | Spotter reported a threat 12804 | -5/Proximity Caves | Lost 5 parts (2n1u2w) 12808 | -5/Proximity Caves | Spotter reported a threat 12862 | -5/Proximity Caves | Spotter reported a threat 12875 | -5/Proximity Caves | Spotter reported a threat 12931 | -5/Proximity Caves | Spotter reported a threat 13002 | -5/Proximity Caves | Spotter reported a threat 13071 | -5/Proximity Caves | Build established: Mutant 13254 | -5/Proximity Caves | Attracted the attention of an 0b10 outpost 13304 | -5/Proximity Caves | Lost 6 parts (1n3u2w) 13330 | -5/Proximity Caves | Attracted the attention of an 0b10 checkpoint 13414 | -5/Proximity Caves | Identified exit to Factory 13552 | -5/Proximity Caves | Entered Factory 13552 | -5/Factory | Evolved 2 slots: Propulsion x1, Utility x1 13852 | -5/Factory | Search patrols dispatched 13952 | -5/Factory | Lost 5 parts (2n2u1w) 14007 | -5/Factory | Lost 3 parts (1p2n) 14101 | -5/Factory | Lost 8 parts (3u5w) 14152 | -5/Factory | Search patrols dispatched 14175 | -5/Factory | Garrison activated, responded to threat 14185 | -5/Factory | Discovered new exit (range 4) 14192 | -5/Factory | Entered Upper Caves 14198 | -5/Upper Caves | Lost 3 parts (1p1n1w) 14240 | -5/Upper Caves | Learned Factory emergency access door positions 14318 | -5/Upper Caves | Lost 6 parts (1n4u1w) 14456 | -5/Upper Caves | System corruption reached 10% 14486 | -5/Upper Caves | Lost 10 parts (5n3u2w) 14752 | -5/Upper Caves | Build established: Scavenger-Mutant 14947 | -5/Upper Caves | Lost 3 parts (1n2w) 15219 | -5/Upper Caves | Encountered a Warlord checkpoint 15401 | -5/Upper Caves | Attracted the attention of an 0b10 outpost 15455 | -5/Upper Caves | Lost 6 parts (1p3n2u) 15533 | -5/Upper Caves | Lost 5 parts (1n1u3w) 16715 | -5/Upper Caves | Discovered new exit (range 13) 16740 | -5/Upper Caves | Entered another Upper Caves area 16818 | -5/Upper Caves | Lost 5 parts (3n1u1w) 16899 | -5/Upper Caves | Discovered new exit (range 15) 16951 | -5/Upper Caves | Entered Factory 16951 | -4/Factory | Evolved 2 slots: Utility x1, Weapon x1 17328 | -4/Factory | System corruption reached 10% 17351 | -4/Factory | Core integrity fell below 50% 17372 | -4/Factory | Lost 10 parts (1p2n4u3w) 17436 | -4/Factory | Core integrity fell below 20% 17448 | -4/Factory | Released all parts (5) 17473 | -4/Factory | Destroyed by S-27 Virus with Autogun Last Messages --------------- 17448_ Released Mak. Spear. 17448_ Released Imp. Target Analyzer. 17452_ System corrupted: Matter fused (-10). 17466_ Detecting system override signal. 17467_ I=K2WDNH:PUGG# A TYSCXRI/PPI 17470_ Acquired Unknown Hackware. 17470_ Identified System Shield. 17473_ Connecting with Terminal... 17473_ Current location identified: Factory >>\\ZION-ROSTER [ Establishing connection... ] [ Retrieving roster... ] [ Squads on standby: ] [ 1 : Recon ] [ 2 : Recon ] [ 3 : Recon ] [ 4 : Thermal Resupply ] >>\\ZION-DISPATCH-1 [ Target locked, reinforcements inbound... ] [Achievement: Achiever] Map ----- +----------------------------------------------------+ | ??????????# """" # #?????????????????????? | | ??????????# """" #/ #?????????????????????? | | ??????????# / #/ #?????????????????????? | | ??????????# # #? ???????????????????? | | ####+################# # ???????????????????? | | " # ????????????????????? | | "%" " ??????????????? | | """ # """ ??????????????? | | """ ] # ""????????????????? | | ^ """ #?! ""????????????????? | | ####### T##+####### #?? ????????????????? | | ??????##?# #??# #?? ???????????????? | | ?????????# "" #??# #???###???????????????? | | ?????????# """ #??# // #?????????????????????? | | ?????????# R" #??# / #?????????????????????? | | ?????????# """ #### #?????????????????????? | | ?????????# / #?????????????????????? | | ?????????# """ #########+########????????????????? | | ?????????# """ # #????????????????? | | ?????????# """ # """ """s""" #????????????????? | | ?????????# # """ """ """ #????????????????? | | ?????????# # """ """s""" #????????????????? | | ?????????# # #????????????????? | | ?????????##+#### """ #????????????????? | | ???????????????# """ #????????????????? | | ???????????????+ """ @""T"" #????????????????? | | ???????????????# """"" #????????????????? | | ???????????????##################????????????????? | | ?????????????????????????????????????????????????? | | ?????????????????????????????????????????????????? | | ?????????????????????????????????????????????????? | | ?????????????????????????????????????????????????? | | ?????????????????????????????????????????????????? | | ?????????????????????????????????????????????????? | | ?????????????????????????????????????????????????? | | ?????????????????????????????????????????????????? | | ?????????????????????????????????????????????????? | | ?????????????????????????????????????????????????? | | ?????????????????????????????????????????????????? | | ?????????????????????????????????????????????????? | | ?????????????????????????????????????????????????? | | ?????????????????????????????????????????????????? | | ?????????????????????????????????????????????????? | | ?????????????????????????????????????????????????? | | ?????????????????????????????????????????????????? | | ??+??????????????????????????????????????????????? | | ?????????????????????????????????????????????????? | | ?????????????????????????????????????????????????? | | ?????????????????????????????????????????????????? | | ?????????????????????????????????????????????????? | +----------------------------------------------------+ Best States ------------- Heat Dissipation 133 Energy Generation 29 Energy Capacity 310 Matter Stores 300 Matter Capacity 300 Sight Range 16 Robot Scan Range 15 Terrain Scan Range 16 Terrain Scan Density 110 Jamming Range 14 Power Amplification 20 Additional Mass Support 9 Base Temperature (-) 150 Armor Coverage 375 Resistance: KI 20 Resistance: TH 25 Resistance: EM 25 Propulsion Shielding 66 Evasion (%) 64 Targeting Accuracy 6 Melee Accuracy 6 Target Analysis 6 Core Analysis 6 Armor Integrity Analysis 30 Recoil Reduction 5 Matter Filtering 30 Kinecelleration 30 Offensive Hacking 11 Defensive Hacking 11 Item Schematics ----------------- Combat Drone Bay | -6/Data Miner | Free Lgt. Regenerative Plating | -6/Data Miner | Free Enh. Flexi-carbon Leg | -6/Data Miner | Free Prc. Energy Filter | -6/Data Miner | Free Imp. KE Penetrator | -6/Data Miner | Free Centrium Wheel | -6/Data Miner | Free Quantum Capacitor | -6/Data Miner | Free Matter Neutralizer | -6/Data Miner | Free Robot Schematics ------------------ A-15 Conveyor | -6/Data Miner | Free B-60 Warrior | -6/Data Miner | Free E-15 Imp | -6/Data Miner | Free A-27 Freighter | -6/Data Miner | Free W-44 Eye | -6/Data Miner | Free G-50 Soldier | -6/Data Miner | Free Fabricated ------------ Nothing Alien Tech Used ----------------- None Achievements -------------- A New Friend Achiever Adventurer Explorer The Oracle Total Silence Challenges ------------ None Game ------ Seed WeaponsLightTendrils Manual? 0 Play Time 02:51:59 Cumulative 17.5 hours Start 2024.08.20 @ 00:23:36 End 2024.08.25 @ 04:52:02 Sessions 5 Manual Loads 0 Difficulty Rogue Special Mode None Game No. 10 Rogue 10 Adventurer 0 Explorer 0 Win Type - Total 1 Types 1/0/0/0/0/0/0/0/0 Lore% 15 Gallery% 30 Achievement% 26 Wizard Run 0 Options --------- Layout 1 ASCII 0 Keyboard 1 Movement Numpad Keybinds 0 Fullscreen 1 Font 24/Smallcaps Map View 50x35 Zoom Use 0% Tactical HUD 1 Map Filters NONE Filters NONE Steam 1 RUN: 02cf38f6-c32f-4bb6-b643-cb912dc86ae5